bitfinex-derivatives/quotes_SOLF0:USTF0_20251023
["timestamp","ask_amount","ask_price","bid_price","bid_amount"]
[1761223267336,2.75,188.88,188.77,2.50157817]
[1761223267635,2.75,188.88,188.79,2.81]
[1761223267835,2.50157817,188.86,188.8,4.75091984]
[1761223268141,2.50157817,188.86,188.82,2.81]
[1761223268844,2.50157817,188.86,188.82,7.5751]
[1761223269438,5.25157817,188.86,188.82,7.5751]
[1761223269734,35.18,188.9,188.69,20.720845]
[1761223269735,2.50157817,188.83,188.75,2.81]
[1761223269939,2.50157817,188.83,188.71,2.50157817]
[1761223269940,2.75,188.88,188.77,2.81]
[1761223270138,5.25157817,188.88,188.79,2.81]
[1761223270336,5.25157817,188.88,188.81,2.81]
[1761223270645,5.25157817,188.88,188.82,7.567331]
[1761223270835,5.25157817,188.88,188.82,2.81]
[1761223271133,2.75,188.87,188.75,2.81]
[1761223271337,2.75,188.87,188.77,2.81]
[1761223271638,2.75,188.87,188.79,2.81]
[1761223271833,2.75,188.87,188.8,4.75883913]
[1761223272028,2.75,188.87,188.8,4.7656]
[1761223272029,2.75,188.84,188.8,4.7656]
[1761223272237,2.75,188.84,188.81,4.7591377]
[1761223272438,2.75,188.84,188.8,7.5756]
[1761223273238,2.50157817,188.85,188.81,4.76144378]
[1761223273445,2.75,188.84,188.78,4.7662]
[1761223273637,15.88157817,188.91,188.79,4.76228837]
[1761223273638,2.50157817,188.82,188.79,4.76228837]
[1761223273844,2.50157817,188.82,188.71,2.50157817]
[1761223273845,2.75,188.81,188.73,2.81]
[1761223274135,2.50157817,188.82,188.77,7.5764]
[1761223274340,5.25157817,188.82,188.78,7.5730355]
[1761223274539,5.25157817,188.82,188.78,2.81]
[1761223275242,5.25157817,188.82,188.79,4.76488973]
[1761223275443,5.25157817,188.82,188.78,2.81]
[1761223275648,5.25157817,188.82,188.79,4.76529869]
[1761223275842,5.25157817,188.82,188.78,2.81]
[1761223276032,5.25157817,188.82,188.79,4.76529633]
[1761223276244,5.25157817,188.82,188.78,2.81]
[1761223276445,2.75,188.82,188.79,4.7668384]
[1761223276747,2.75,188.82,188.78,2.81]
[1761223276946,2.75,188.82,188.79,4.76686079]
[1761223277249,2.75,188.82,188.78,2.81]
[1761223277438,2.75,188.82,188.79,4.76837241]
[1761223277747,2.75,188.82,188.78,2.81]
[1761223278045,2.75,188.82,188.79,4.76779454]
[1761223278247,2.75,188.82,188.78,2.81]
[1761223278446,2.75,188.82,188.79,4.76935618]
[1761223278745,2.75,188.82,188.78,2.81]
[1761223278946,2.75,188.82,188.79,4.76935853]
[1761223279148,2.75,188.82,188.78,2.81]
[1761223279348,2.75,188.82,188.79,4.77057906]
[1761223279646,2.75,188.82,188.77,4.7664]
[1761223279647,2.75,188.82,188.74,2.81]
[1761223279841,2.75,188.82,188.75,7.58053892]
[1761223280142,2.75,188.82,188.76,7.58053892]
[1761223280344,2.75,188.82,188.77,7.58053892]
[1761223280539,2.75,188.82,188.78,4.77053892]
[1761223280854,2.75,188.82,188.79,4.77053892]
[1761223281045,2.75,188.82,188.77,2.81]
[1761223281247,2.75,188.82,188.78,4.77298983]
[1761223281446,2.75,188.82,188.79,4.77298983]
[1761223281750,2.75,188.8,188.67,2.81]
[1761223281943,2.50157817,188.83,188.7,2.81]
[1761223282148,2.75,188.82,188.7,2.81]
[1761223282449,2.75,188.82,188.72,2.81]
[1761223282645,2.75,188.79,188.67,2.81]
[1761223283045,2.75,188.79,188.71,7.5779]
[1761223283447,2.75,188.79,188.71,2.81]
[1761223284244,2.75,188.79,188.69,4.7684]
[1761223284447,2.50157817,188.77,188.69,4.7684]
[1761223284749,2.75,188.76,188.69,4.7684]
[1761223285051,2.75,188.76,188.7,7.5782]
[1761223286249,2.75,188.76,188.71,4.7679]
[1761223286458,2.50157817,188.8,188.72,2.76]
[1761223286658,5.29157817,188.8,188.72,2.76]
[1761223287255,2.79,188.8,188.7,2.50157817]
[1761223287552,2.79,188.8,188.71,2.76]
[1761223287749,5.29157817,188.84,188.71,2.76]
[1761223287950,2.79,188.83,188.71,2.76]
[1761223288551,2.79,188.83,188.74,2.50157817]
[1761223288746,2.79,188.83,188.76,1.59981406]
[1761223289146,2.79,188.83,188.76,4.47981406]
[1761223289551,2.79,188.83,188.78,1.59981406]
[1761223289751,2.79,188.83,188.79,2.88]
[1761223290560,4.92249353,188.95,188.79,2.88]
[1761223290561,2.66,188.87,188.79,1.59981406]
[1761223291148,1.59981406,188.86,188.79,1.59981406]
[1761223291354,4.25981406,188.86,188.79,6.36571406]
[1761223291657,1.59981406,188.84,188.78,2.88]
[1761223291852,2.66,188.83,188.78,2.88]
[1761223293557,2.66,188.83,188.77,4.7665]
[1761223294856,2.66,188.77,188.69,2.88]
[1761223295160,2.66,188.74,188.68,1.59981406]
[1761223295663,2.66,188.72,188.65,9.24931406]
[1761223295857,2.66,188.72,188.66,4.75672681]
[1761223296054,2.66,188.72,188.67,4.75672681]
[1761223296250,2.66,188.72,188.66,4.7692]
[1761223296563,2.66,188.72,188.67,7.63548689]
[1761223296754,2.66,188.72,188.67,2.88]
[1761223296955,2.66,188.72,188.66,4.7692]
[1761223298369,1.59981406,188.74,188.68,2.88]
[1761223298664,4.25981406,188.74,188.68,2.88]
[1761223298855,4.25981406,188.73,188.68,2.88]
[1761223299257,1.59981406,188.74,188.68,2.88]
[1761223299959,4.25981406,188.74,188.68,7.6487]
[1761223301264,4.25981406,188.74,188.69,4.75483944]
[1761223301463,4.25981406,188.74,188.68,7.6487]
[1761223301663,4.25981406,188.74,188.69,4.75483542]
[1761223301864,4.25981406,188.74,188.68,4.7687]
[1761223302066,4.25981406,188.74,188.69,4.75483147]
[1761223302267,4.25981406,188.74,188.68,7.6487]
[1761223302467,4.25981406,188.74,188.69,7.63583527]
[1761223302668,4.25981406,188.74,188.69,2.88]
[1761223303869,2.66,188.73,188.69,2.88]
[1761223304965,1.59981406,188.74,188.7,7.63959571]
[1761223305163,4.25981406,188.74,188.7,2.88]
[1761223307168,4.25981406,188.74,188.71,4.76449013]
[1761223307368,4.25981406,188.74,188.7,2.88]
[1761223307574,4.25981406,188.74,188.71,4.76449045]
[1761223307758,4.25981406,188.74,188.7,2.88]
[1761223307957,4.25981406,188.74,188.71,4.7644881]
[1761223308158,1.59981406,188.72,188.68,4.7687]
[1761223308363,1.59981406,188.72,188.69,4.76795891]
[1761223308562,2.66,188.71,188.7,4.76795891]
[1761223308759,2.66,188.71,188.66,4.7693]
[1761223308965,4.25981406,188.7,188.67,4.76893136]
[1761223309168,4.25981406,188.7,188.68,4.76893136]
[1761223309368,4.25981406,188.7,188.69,4.76893136]
[1761223309867,4.25981406,188.7,188.62,2.88]
[1761223310171,4.25981406,188.7,188.63,7.65336186]
[1761223310366,4.25981406,188.7,188.64,4.77336186]
[1761223310563,2.66,188.69,188.65,4.77336186]
[1761223310765,2.66,188.69,188.66,4.77336186]
[1761223311064,1.59981406,188.72,188.67,7.65336186]
[1761223311270,2.66,188.71,188.68,4.77336186]
[1761223311569,2.66,188.71,188.69,4.77336186]
[1761223311770,2.66,188.71,188.64,2.88]
[1761223311961,2.66,188.71,188.65,4.77942573]
[1761223312266,2.66,188.71,188.66,7.65942573]
[1761223312472,2.66,188.71,188.67,7.65942573]
[1761223312669,2.66,188.71,188.68,4.77942573]
[1761223312867,2.66,188.71,188.69,4.77942573]
[1761223313073,2.66,188.71,188.7,4.77942573]
[1761223313477,2.66,188.71,188.6,2.88]
[1761223313670,1.59981406,188.68,188.6,2.88]
[1761223313864,20.82249353,188.76,188.6,2.88]
[1761223313865,2.66,188.75,188.61,2.88]
[1761223314070,1.59981406,188.7,188.61,2.88]
[1761223314276,4.25981406,188.7,188.61,2.88]
[1761223315072,4.7687,188.69,188.62,7.6502]
[1761223315575,1.59981406,188.68,188.63,4.77]
[1761223315876,4.25981406,188.68,188.64,2.88]
[1761223316666,1.59981406,188.68,188.63,4.77]
[1761223316873,2.66,188.67,188.63,7.65]
[1761223317884,14.45589353,188.77,188.63,7.65]
[1761223317885,2.66,188.72,188.63,2.88]
[1761223318179,2.66,188.72,188.66,1.59981406]
[1761223318374,2.66,188.71,188.64,1.59981406]
[1761223318769,2.66,188.7,188.64,1.59981406]
[1761223318975,4.25981406,188.74,188.66,4.47981406]
[1761223319179,2.66,188.73,188.66,4.47981406]
[1761223319388,4.7679,188.72,188.66,9.24901406]
[1761223320974,7.4279,188.72,188.66,9.24901406]
[1761223321478,2.66,188.71,188.66,1.59981406]
[1761223321676,4.25981406,188.75,188.68,4.47981406]
[1761223321881,2.66,188.74,188.68,4.47981406]
[1761223322572,7.4275,188.74,188.68,4.47981406]
[1761223322778,2.66,188.73,188.7,1.59981406]
[1761223323184,7.4268,188.77,188.72,1.59981406]
[1761223323481,2.66,188.76,188.72,1.59981406]
[1761223323778,2.66,188.76,188.72,4.47981406]
[1761223327087,2.66,188.76,188.73,2.88]
[1761223328880,2.66,188.76,188.72,1.59981406]
[1761223329287,2.66,188.76,188.72,4.47981406]
[1761223330385,2.66,188.76,188.73,2.88]
[1761223330979,7.4269,188.76,188.68,7.6487]
[1761223331186,2.66,188.76,188.7,1.59981406]
[1761223331879,2.66,188.76,188.72,4.47981406]
[1761223332788,2.66,188.75,188.72,1.59981406]
[1761223333487,2.66,188.75,188.72,4.47981406]
[1761223333687,4.767,188.76,188.73,2.88]
[1761223335087,4.767,188.76,188.71,7.648]
[1761223335286,4.767,188.76,188.56,103.16318823]
[1761223335287,2.66,188.74,188.68,1.59981406]
[1761223335493,2.66,188.74,188.69,2.88]
[1761223335788,2.66,188.74,188.7,4.47981406]
[1761223336488,7.4267,188.77,188.73,2.88]
[1761223336786,7.4267,188.77,188.72,1.59981406]
[1761223336787,2.66,188.76,188.72,1.59981406]
[1761223337988,2.66,188.75,188.72,1.59981406]
[1761223338289,2.66,188.75,188.7,9.24801406]
[1761223338983,2.66,188.75,188.71,2.88]
[1761223339289,2.66,188.75,188.65,4.87102128]
[1761223339290,2.66,188.74,188.69,4.47981406]
[1761223339486,2.66,188.74,188.69,1.59981406]
[1761223339788,2.66,188.74,188.7,2.88]
[1761223344599,2.66,188.73,188.7,2.88]
[1761223348899,2.66,188.73,188.71,4.82268206]
[1761223349198,2.66,188.73,188.72,4.82268206]
[1761223349799,4.7674,188.74,188.72,4.82268206]
[1761223349997,4.7674,188.74,188.73,4.82268206]
[1761223351598,7.5874,188.74,188.73,4.82268206]
[1761223352399,7.5874,188.74,188.73,4.82477489]
[1761223355198,4.7669,188.76,188.73,4.82477489]
[1761223355404,2.82,188.75,188.74,4.82477489]
[1761223358806,2.82,188.75,188.74,7.489e-05]
[1761223359007,2.82,188.74,188.62,4.87102128]
[1761223359213,2.82,188.71,188.61,2.67]
[1761223359509,7.5895,188.66,188.61,2.67]
[1761223362115,2.82,188.65,188.61,2.67]
[1761223363407,2.82,188.68,188.58,2.67]
[1761223365014,4.7698,188.65,188.58,2.67]
[1761223365415,7.5898,188.65,188.58,2.67]
[1761223365910,4.77,188.64,188.58,2.67]
[1761223366112,7.59,188.64,188.58,2.67]
[1761223366307,2.82,188.64,188.58,2.67]
[1761223366709,2.82,188.62,188.58,2.67]
[1761223370030,2.82,188.62,188.55,112.05061136]
[1761223370323,2.82,188.62,188.55,114.72061136]
[1761223370524,7.5905,188.62,188.55,114.72061136]
[1761223370725,4.7705,188.62,188.56,2.67]
[1761223371320,7.5905,188.62,188.56,2.67]
[1761223374426,2.82,188.61,188.56,2.67]
[1761223375326,4.7697,188.65,188.57,2.67]
[1761223375521,2.82,188.65,188.57,2.67]
[1761223376021,2.82,188.61,188.57,2.67]
[1761223376227,2.82,188.61,188.54,7.4423]
[1761223376627,2.82,188.64,188.55,2.67]
[1761223377124,4.7707,188.61,188.55,2.67]
[1761223377927,4.7702,188.63,188.53,2.67]
[1761223378126,44.58,188.66,188.56,2.67]
[1761223378529,47.4,188.66,188.56,2.67]
[1761223379434,47.4,188.66,188.59,2.73]
[1761223379435,44.58,188.66,188.59,2.73]
[1761223379634,44.58,188.66,188.6,2.73]
[1761223379830,44.58,188.66,188.64,2.73]
[1761223380029,4.7685,188.7,188.64,2.73]
[1761223380431,15.994977,188.74,188.64,2.73]
[1761223380637,18.604977,188.74,188.67,2.73]
[1761223380838,2.61,188.74,188.67,2.73]
[1761223381135,4.768,188.72,188.67,2.73]
[1761223381337,2.61,188.74,188.67,2.73]
[1761223381538,44.58,188.77,188.7,2.73]
[1761223381839,4.7669,188.76,188.7,2.73]
[1761223382534,49.3464,188.78,188.7,2.73]
[1761223383132,2.61,188.75,188.7,2.73]
[1761223383730,2.61,188.75,188.66,2.73]
[1761223383931,2.50182473,188.73,188.66,2.73]
[1761223384645,2.00182473,188.73,188.66,2.73]
[1761223385626,7.3773,188.75,188.66,4.7691]
[1761223385832,7.3773,188.75,188.67,2.73]
[1761223386132,2.50182473,188.79,188.67,2.73]
[1761223386330,47.06182473,188.79,188.68,2.73]
[1761223386526,49.67182473,188.79,188.68,2.73]
[1761223386937,54.43792473,188.79,188.71,4.7679]
[1761223387130,54.43792473,188.79,188.71,7.4979]
[1761223388440,54.43792473,188.79,188.71,4.7679]
[1761223388637,54.43792473,188.79,188.72,2.73]
[1761223389529,47.17,188.79,188.73,7.4975]
[1761223389942,2.61,188.78,188.7,2.73]
[1761223390845,2.61,188.78,188.71,2.73]
[1761223392040,2.61,188.78,188.71,7.4979]
[1761223392838,2.61,188.78,188.72,2.73]
[1761223393041,2.61,188.78,188.72,7.4977]
[1761223393839,2.61,188.78,188.73,2.73]
[1761223395148,2.61,188.78,188.74,2.73]
[1761223395945,44.56,188.79,188.74,2.73]
[1761223397553,47.17,188.79,188.74,2.73]
[1761223399448,2.61,188.78,188.74,2.73]
[1761223402753,2.50182473,188.78,188.73,4.7674]
[1761223402957,2.50182473,188.78,188.72,2.73]
[1761223402958,2.61,188.77,188.72,2.73]
[1761223404162,2.61,188.77,188.66,2.73]
[1761223405054,2.61,188.77,188.73,7.4975]
[1761223405957,2.61,188.77,188.74,2.88]
[1761223406254,2.61,188.77,188.73,4.7675]
[1761223406854,2.61,188.77,188.73,7.6475]
[1761223407354,2.61,188.77,188.74,2.88]
[1761223408761,1.60088866,188.75,188.74,2.88]
[1761223409355,1.60088866,188.75,188.71,4.768]
[1761223409550,44.56,188.79,188.68,2.7]
[1761223409551,2.66,188.72,188.68,2.7]
[1761223409754,1.60088866,188.71,188.68,2.7]
[1761223411054,1.60088866,188.71,188.69,7.4685]
[1761223411757,1.60088866,188.71,188.7,2.7]
[1761223413759,1.60088866,188.72,188.7,7.4683]
[1761223415661,1.60088866,188.72,188.7,4.7683]
[1761223415855,4.26088866,188.72,188.7,4.7683]
[1761223417156,4.26088866,188.72,188.69,2.7]
[1761223420170,1.60088866,188.7,188.69,2.7]
[1761223420367,1.60088866,188.7,188.68,4.7687]
[1761223420570,1.60088866,188.7,188.68,7.4687]
[1761223422566,1.60088866,188.7,188.69,2.7]
[1761223423067,1.60088866,188.7,188.68,7.4687]
[1761223425262,4.26088866,188.7,188.67,2.7]
[1761223426068,4.26088866,188.7,188.66,4.7692]
[1761223426069,2.66,188.69,188.66,4.7692]
[1761223426270,1.60088866,188.7,188.68,2.7]
[1761223427873,2.66,188.72,188.68,2.7]
[1761223428079,4.26088866,188.71,188.68,2.7]
[1761223428681,1.60088866,188.71,188.68,2.7]
[1761223429177,4.26088866,188.71,188.68,2.7]
[1761223429685,1.60088866,188.71,188.68,2.7]
[1761223429880,4.7677,188.73,188.69,2.7]
[1761223429881,6.36858866,188.73,188.69,2.7]
[1761223430272,9.02858866,188.73,188.69,2.7]
[1761223430477,2.66,188.72,188.69,2.7]
[1761223430679,2.66,188.72,188.7,4.81756675]
[1761223430878,2.66,188.72,188.71,4.81756675]
[1761223432984,2.66,188.72,188.71,4.81766545]
[1761223440184,4.7677,188.73,188.71,4.81766545]
[1761223440484,7.4177,188.73,188.72,4.81766545]
[1761223441688,9.01858866,188.73,188.72,4.81766545]
[1761223443185,6.59704424,188.8,188.73,2.64]
[1761223443186,6.52422269,188.8,188.73,2.64]
[1761223443386,2.65,188.77,188.74,4.81766545]
[1761223443590,4.92333403,188.81,188.75,4.81766545]
[1761223443591,4.25088866,188.76,188.75,4.81766545]
[1761223443786,9.01778866,188.76,188.75,4.81766545]
[1761223445086,6.36698866,188.79,188.75,4.81766545]
[1761223445286,2.65,188.78,188.76,4.81766545]
[1761223445492,4.7661,188.79,188.77,7.45766545]
[1761223445691,4.7661,188.79,188.78,4.81766545]
[1761223447795,7.4161,188.79,188.78,4.81766545]
[1761223455599,2.65,188.77,188.71,2.64]
[1761223455798,2.65,188.76,188.71,2.64]
[1761223456399,4.7675,188.74,188.71,2.64]
[1761223456603,7.4175,188.74,188.68,1.60088866]
[1761223456801,9.01838866,188.74,188.69,2.64]
[1761223457308,9.01838866,188.74,188.69,1.14]
[1761223460305,7.4175,188.74,188.71,2.64]
[1761223463507,9.01838866,188.74,188.71,2.64]
[1761223470712,7.4175,188.74,188.71,2.64]
[1761223470907,44.46,188.77,188.71,2.64]
[1761223471809,49.2267,188.77,188.73,2.69]
[1761223472008,49.2267,188.77,188.74,7.48680138]
[1761223472208,49.2267,188.77,188.75,4.79680138]
[1761223472409,49.2267,188.77,188.76,4.79680138]
[1761223473007,51.8967,188.77,188.76,4.79680138]
[1761223474619,47.13,188.77,188.76,4.79680138]
[1761223475704,2.67,188.77,188.76,4.79680138]
[1761223486619,47.11,188.78,188.76,4.79680138]
[1761223486819,47.11,188.78,188.77,4.79680138]
[1761223491629,49.61192008,188.78,188.77,4.79680138]
[1761223497028,2.67,188.76,188.71,4.768]
[1761223497331,47.09,188.75,188.72,7.50281516]
[1761223497530,47.09,188.75,188.72,2.69]
[1761223499028,44.42,188.75,188.73,2.86]
[1761223500225,10.13812008,188.79,188.74,2.86]
[1761223500438,44.4,188.78,188.74,2.86]
[1761223501432,4.9535171,188.82,188.72,2.86]
[1761223501735,47.27,188.83,188.76,2.86]
[1761223502129,47.27,188.83,188.8,2.86]
[1761223502331,44.4,188.83,188.8,2.86]
[1761223502525,2.50192008,188.88,188.8,2.86]
[1761223502732,2.87,188.9,188.81,2.86]
[1761223502935,44.4,188.89,188.82,2.86]
[1761223504035,44.4,188.89,188.85,2.86]
[1761223505122,44.4,188.89,188.86,2.86]
[1761223505534,44.4,188.89,188.82,4.91234109]
[1761223505535,2.50192008,188.93,188.88,2.86]
[1761223505723,2.87,188.93,188.88,2.86]
[1761223506034,44.4,188.93,188.88,2.86]
[1761223506437,44.4,188.93,188.9,2.86]
[1761223507034,44.38,188.97,188.87,2.86]
[1761223508136,47.25,188.97,188.93,2.86]
[1761223508321,2.87,188.95,188.85,2.86]
[1761223508529,2.87,188.89,188.82,2.86]
[1761223508730,5.37192008,188.87,188.82,2.86]
[1761223508931,2.50192008,188.87,188.82,2.86]
[1761223509229,2.50192008,188.87,188.84,2.86]
[1761223509434,2.50192008,188.87,188.85,7.59708157]
[1761223509623,44.38,188.9,188.87,2.86]
[1761223509928,44.38,188.9,188.88,4.73708157]
[1761223510134,2.87,188.89,188.84,2.86]
[1761223510328,2.87,188.89,188.85,7.59854891]
[1761223510631,2.87,188.89,188.86,4.73854891]
[1761223510832,2.87,188.89,188.87,4.73854891]
[1761223511030,2.87,188.89,188.85,2.86]
[1761223511226,2.87,188.89,188.83,4.765]
[1761223511227,2.87,188.89,188.86,7.597337]
[1761223511431,47.25,188.9,188.86,2.86]
[1761223511627,44.38,188.9,188.86,2.86]
[1761223511828,2.87,188.89,188.83,7.625]
[1761223512033,2.87,188.89,188.84,7.59641365]
[1761223512248,2.87,188.87,188.85,4.73641365]
[1761223512423,2.87,188.87,188.76,2.86]
[1761223512628,2.87,188.87,188.78,2.86]
[1761223512829,2.87,188.87,188.8,2.86]
[1761223513123,5.37192008,188.82,188.75,2.86]
[1761223513325,5.37192008,188.82,188.76,4.73994234]
[1761223513634,5.37192008,188.82,188.78,2.86]
[1761223513937,5.37192008,188.82,188.79,4.73994234]
[1761223514236,5.37192008,188.82,188.77,2.86]
[1761223514438,5.37192008,188.82,188.78,7.60194279]
[1761223514624,5.37192008,188.82,188.79,4.74194279]
[1761223514830,5.37192008,188.82,188.78,2.86]
[1761223515030,2.87,188.81,188.78,2.86]
[1761223515225,2.87,188.83,188.79,7.59840264]
[1761223515432,2.87,188.83,188.8,2.86]
[1761223516432,2.87,188.83,188.78,4.7661]
[1761223516639,2.87,188.83,188.78,7.6261]
[1761223516837,2.50192008,188.82,188.79,2.86]
[1761223517138,2.87,188.9,188.73,2.86]
[1761223517340,2.50192008,188.89,188.78,2.86]
[1761223517825,2.50192008,188.92,188.85,2.86]
[1761223518027,2.50192008,188.95,188.85,2.86]
[1761223518232,2.87,188.97,188.86,2.86]
[1761223518540,2.87,188.97,188.9,2.86]
[1761223519933,2.87,188.97,188.91,4.7629]
[1761223526547,2.87,188.97,188.91,7.4929]
[1761223529757,2.87,188.97,188.93,2.71]
[1761223529968,2.50192008,188.99,188.93,2.71]
[1761223530460,2.61,188.98,188.93,2.71]
[1761223530661,4.20710414,188.98,188.93,2.71]
[1761223530962,4.20710414,188.98,188.93,7.4723]
[1761223531159,2.61,188.97,188.93,7.4723]
[1761223531361,4.20710414,188.96,188.89,2.71]
[1761223531656,1.59710414,188.92,188.82,2.71]
[1761223531856,1.59710414,188.87,188.82,2.71]
[1761223532253,1.59710414,188.87,188.86,2.71]
[1761223532459,1.59710414,188.9,188.86,2.71]
[1761223533959,1.59710414,188.9,188.87,4.7639]
[1761223534164,1.59710414,188.9,188.88,2.71]
[1761223535362,1.59710414,188.9,188.87,7.4739]
[1761223535960,1.59710414,188.9,188.88,2.71]
[1761223537262,1.59710414,188.9,188.87,4.7639]
[1761223537455,1.59710414,188.9,188.88,2.71]
[1761223541864,1.59710414,188.9,188.79,44.34]
[1761223541865,2.61,188.89,188.85,4.7643]
[1761223542063,44.34,188.94,188.85,7.4743]
[1761223542064,1.59710414,188.86,188.85,7.4743]
[1761223542366,1.59710414,188.88,188.86,2.71]
[1761223542769,1.59710414,188.88,188.86,7.4741]
[1761223543369,1.59710414,188.9,188.89,2.71]
[1761223543968,73.40125206,189.01,188.89,2.71]
[1761223543969,2.61,189.0,188.9,2.71]
[1761223544266,1.59710414,188.97,188.9,2.71]
[1761223544666,4.20710414,188.97,188.94,4.7621]
[1761223544867,1.59710414,188.99,188.91,2.71]
[1761223545064,2.61,189.05,188.91,2.71]
[1761223545265,1.59710414,189.01,188.93,2.71]
[1761223545473,1.59710414,189.01,188.95,2.71]
[1761223545771,1.59710414,189.01,188.99,7.4708]
[1761223545968,1.59710414,189.01,189.0,4.74215665]
[1761223547270,4.20710414,189.01,189.0,4.74215665]
[1761223547771,1.59710414,189.01,189.0,4.74215665]
[1761223552576,2.61,189.03,189.0,4.74215665]
[1761223552779,4.20710414,189.02,188.99,2.71]
[1761223553074,44.32,189.07,188.9,2.71]
[1761223553075,2.61,188.99,188.9,2.71]
[1761223553374,1.59710414,188.98,188.92,2.71]
[1761223553572,1.59710414,188.98,188.94,2.71]
[1761223553771,1.59710414,188.98,188.95,7.44709463]
[1761223554079,2.61,188.99,188.96,7.44709463]
[1761223554273,4.20710414,189.0,188.97,4.73709463]
[1761223554474,4.20710414,189.0,188.98,4.73709463]
[1761223554676,4.20710414,189.0,188.95,4.7618]
[1761223554677,1.59710414,189.03,188.99,7.44752254]
[1761223554979,4.20710414,189.03,188.99,2.71]
[1761223557278,2.61,189.02,188.99,2.71]
[1761223557471,2.61,189.02,188.99,7.4708]
[1761223558285,1.59710414,189.03,188.99,7.4708]
[1761223558487,4.20710414,189.03,188.99,7.4708]
[1761223558685,4.20710414,189.03,188.99,7.4608]
[1761223560180,4.20710414,189.03,189.0,4.73825452]
[1761223560181,2.61,189.03,189.0,4.73825452]
[1761223560377,4.20710414,189.03,189.01,4.73825452]
[1761223560582,7.5796,189.05,189.0,2.7]
[1761223560784,6.35670414,189.05,189.02,2.7]
[1761223561581,1.59710414,189.05,189.02,2.7]
[1761223561783,1.59710414,189.05,189.03,7.44281344]
[1761223561987,1.59710414,189.05,189.03,2.7]
[1761223563183,4.7585,189.09,189.04,2.7]
[1761223563386,4.41710414,189.11,189.04,2.7]
[1761223563591,1.59710414,189.09,189.05,4.7423501]
[1761223563886,2.82,189.06,189.03,4.7598]
[1761223564191,7.5786,189.09,189.03,7.4598]
[1761223564388,7.5786,189.09,189.04,2.7]
[1761223564687,1.59710414,189.1,189.04,2.7]
[1761223565084,1.59710414,189.1,189.06,2.7]
[1761223565789,4.41710414,189.1,189.06,2.7]
[1761223565992,4.41710414,189.1,189.06,7.4591]
[1761223567393,2.82,189.09,189.06,4.7591]
[1761223567889,1.59710414,189.08,189.04,4.7596]
[1761223568194,44.3,189.15,189.04,7.4596]
[1761223568195,1.59710414,189.06,189.04,7.4596]
[1761223568396,4.41710414,189.07,189.04,7.4596]
[1761223568795,1.59710414,189.07,189.04,7.4596]
[1761223568989,1.59710414,189.08,189.05,4.73067763]
[1761223569188,1.59710414,189.08,189.06,4.72972315]
[1761223569396,1.59710414,189.08,189.05,2.7]
[1761223569589,4.41710414,189.08,189.06,4.72762694]
[1761223569794,4.41710414,189.08,189.05,2.7]
[1761223570190,2.82,189.05,188.97,1.59710414]
[1761223570387,2.82,189.05,188.98,4.72675417]
[1761223570699,65.1535171,189.15,188.99,7.42675417]
[1761223570700,4.41710414,189.04,188.99,7.42675417]
[1761223570894,4.41710414,189.04,189.0,4.72675417]
[1761223571097,4.41710414,189.04,188.99,2.7]
[1761223571098,2.82,189.03,189.01,4.72675417]